Cogmind - Beta 15 @@@ ROGUE MODE // 2025.10.11 @ 23:01:30 Player: souux Result: Destroyed by S-10 Pest with Light Assault Rifle Performance ------------- Evolutions (0) 0 Regions Visited (1) 200 Robots Destroyed (17) 85 Value Destroyed (361) 361 Prototype IDs (0) 0 Alien Tech Used (0) 0 Bonus (0) 0 TOTAL SCORE: 646 Bonus ------- None Cogmind --------- Core Integrity 0/250 Matter 300/300 Energy 250/250 System Corruption 1% Temperature Cool (36) Movement Rolling (105) Ox1 Location -10/Materials Parts ------- > --- POWER (1) -------- Ion Engine > --- PROPULSION (2) --- Wheel Compact Wheel > --- UTILITY (2) ------ Large Storage Unit Tractor Beam > --- WEAPON (2) ------- Small Laser Small Laser > --- INVENTORY (15) --- Light Treads Light Treads Aluminum Leg High-capacity Matter Pod (30) Light Armor Plating Light Armor Plating Light Assault Rifle Grenade Launcher Peak State ------------ > --- POWER ------------ Ion Engine > --- PROPULSION ------- Wheel Compact Wheel > --- UTILITY ---------- Small Storage Unit Seismic Detector > --- WEAPON ----------- Light Assault Rifle Light Assault Rifle > --- INVENTORY -------- Light Ion Engine Light Treads Light Treads Aluminum Leg Aluminum Leg Tractor Beam Small Laser [Rating: 7] Favorites ----------- Power Ion Engine Engine Ion Engine Propulsion Wheel Wheel Wheel Utility Large Storage Unit Device Seismic Detector Storage Large Storage Unit Weapon Light Assault Rifle Energy Gun Small Laser Ballistic Gun Light Assault Rifle Build | -11 -10 ------- Run | Yrd Mat Slots Evolved . | . . Power . | . . Propulsion . | . . Utility . | . . Weapon . | . . Parts Attached 16 | 7 9 Power 2 | 1 1 Engine 2 | 1 1 Core . | . . Reactor . | . . Propulsion 5 | 2 3 Treads . | . . Leg . | . . Wheel 5 | 2 3 Hover . | . . Flight . | . . Utility 5 | 2 3 Device 3 | 1 2 Storage 2 | 1 1 Processor . | . . Hackware . | . . Protection . | . . Artifact . | . . Weapon 4 | 2 2 Energy Gun 2 | . 2 Energy Cannon . | . . Ballistic Gun 2 | 2 . Ballistic Cannon . | . . Launcher . | . . Special Weapon . | . . Impact Weapon . | . . Slashing Weapon . | . . Piercing Weapon . | . . Special Melee Weapon . | . . Unidentified Prototypes . | . . Parts Lost 8 | . 8 Power 1 | . 1 Propulsion 3 | . 3 Utility 2 | . 2 Weapon 2 | . 2 Highest Loss Streak 3 | . 3 To Critical Strikes . | . . Average Backups 6 | 4 6 Power . | . . Propulsion 3 | 2 3 Utility 1 | . 1 Weapon . | . 1 Tool/Special . | . . Unused Backups 9 | 1 8 Power 1 | . 1 Propulsion 4 | 1 3 Utility 2 | . 2 Weapon 2 | . 2 Tool/Special . | . . Average Slot Usage (%) 92 | . 92 Engine 13 | . 13 Wheel 26 | . 26 Device 9 | . 9 Storage 14 | . 14 Energy Gun 11 | . 11 Ballistic Gun 15 | . 15 Peak Build Rating 7 | 7 7 Average Rating 6 | 5 6 On Entrance 3 | . 7 Naked Turns . | . . Heaviest Build 28 | 13 28 Greatest Support 26 | 26 26 Greatest Overweight (x) 3 | . 3 Average Overweight (x) . | . . Largest Inventory Capacity 15 | 8 15 Average Capacity 11 | 7 12 Most Carried 8 | 8 8 Average Carried 6 | 4 6 Final Capacity 15 | 8 15 Final Carried 8 | 8 8 Class Distribution -------------------- 72% | Mutant 27% | Scavenger-Mutant Dominant Class ---------------- Mutant | -10/Materials Resources | -11 -10 ----------- Run | Yrd Mat Matter Collected 470 | 292 178 Remotely 70 | . 70 Salvage Created 650 | 133 517 Parts 33 | 6 27 Haulers Intercepted . | . . Recyclers Shooed . | . . Parts Field Recycled . | . . Retrieved Matter . | . . Parts Self-Destructed . | . . Prevented . | . . Kills | -11 -10 ------- Run | Yrd Mat Combat Hostiles Destroyed 13 | . 13 Guns 13 | . 13 Classes Destroyed 4 | 2 2 Tunneler 2 | 2 . Recycler 2 | 1 1 Swarmer 5 | . 5 Grunt 8 | . 8 Best Kill Streak 3 | 2 3 Combat Bots Only 3 | . 3 Max Kills in Single Turn 1 | 1 1 Gunslinging . | . . Exploded . | . . Melee . | . . Uniques/NPCs Destroyed . | . . Combat | -11 -10 -------- Run | Yrd Mat Hostile Shots Fired 107 | . 107 Missed 29 | . 29 Hits 78 | . 78 Projectile 78 | . 78 Critical Strikes 3 | . 3 Damage Taken 797 | . 797 Core 251 | . 251 Absorbed by Shields . | . . Core Remaining (%) 100 | 100 . Volleys Fired 76 | 11 65 Largest 2 | 2 2 Hottest 80 | 40 80 Shots Fired 133 | 22 111 Gun 133 | 22 111 Cannon . | . . Launcher . | . . Special . | . . Kinetic 100 | 22 78 Thermal 33 | . 33 Explosive . | . . Electromagnetic . | . . Robot Hit Streak 9 | 7 9 Robot Miss Streak 4 | 1 4 Penetration Max . | . . Secondary Targets 2 | . 2 Max Gunslinging Chain 1 | . 1 Shots Hit Robots 90 | 14 76 Core Hits 37 | 7 30 Critical Kills . | . . Critical Parts Destroyed 2 | 2 . Critical Strikes 2 | 2 . Destroy 2 | 2 . Melee Attacks . | . . Impact . | . . Slashing . | . . Piercing . | . . Sneak Attacks . | . . Combat Hostiles . | . . Follow-up Attacks . | . . Damage Inflicted 764 | 102 662 Guns 764 | 102 662 Cannons . | . . Explosions . | . . Melee . | . . Ramming . | . . Kinetic 516 | 102 414 Thermal 248 | . 248 Explosive . | . . Electromagnetic . | . . Impact . | . . Slashing . | . . Piercing . | . . Highest Corruption 1 | . 1 Average Corruption 1 | . 1 Corruption Purged . | . . Corruption Blocked . | . . Effects 1 | . 1 Heat Flow Errors 1 | . 1 Overload Shots . | . . Overflow Damage . | . . Projectiles . | . . Explosions . | . . Melee . | . . Knockbacks . | . . Impact . | . . Kinetic . | . . Secondary . | . . Self-Inflicted Damage . | . . Shots . | . . Rammed . | . . Targets Rammed . | . . Kicked . | . . Crushed . | . . Highest Temperature 173 | . 173 Average Temperature 43 | . 43 Received Heat Transfer 315 | . 315 Siege Activations . | . . Martial Activations . | . . Shielding Activations . | . . Robots Disrupted . | . . Combat Hostiles . | . . Robots Corrupted . | . . Combat Hostiles . | . . Parts Fried . | . . Impact Corruptions . | . . Robots Melted . | . . Combat Hostiles . | . . Parts Melted . | . . Heat Transferred 575 | . 575 Parts Sabotaged . | . . Parts Stolen . | . . Parts Stripped . | . . Power Chain Reactions . | . . Alert | -11 -10 ------- Run | Yrd Mat Maximum Alert Level . | . . Low Security (%) 100 | 100 100 Level 1 . | . . Level 2 . | . . Level 3 . | . . Level 4 . | . . Level 5 . | . . High Security . | . . Max Security . | . . Peak Influence 60 | 5 60 Initial . | . . Average 16 | . 19 Influence Increases 349 | 15 334 Destroy 0b10 Robot/C 260 | . 260 Destroy 0b10 Robot/NC 20 | 15 5 Destroy Leader 40 | . 40 Successful Hack 14 | . 14 Partial Spotted 15 | . 15 Influence Decreases 307 | 15 292 Time Decay 233 | 15 218 Lost Part 74 | . 74 Squads Dispatched 4 | . 4 Investigation 3 | . 3 Extermination . | . . Reinforcement 1 | . 1 Assault . | . . Garrison . | . . Intercept . | . . Searches Triggered . | . . Construction Impeded . | . . Haulers Reinforced . | . . Active Scanning Responses . | . . Cargo Convoy Interrupts . | . . Stealth | -11 -10 --------- Run | Yrd Mat Distress Signals . | . . Communications Jammed . | . . Distress Signals . | . . Times Spotted 14 | . 14 Peak Tracking Total 3 | . 3 Tactical Retreats . | . . Traps | -11 -10 ------- Run | Yrd Mat Traps Triggered 4 | . 4 Indirectly . | . . Trap Hack Attempts . | . . Triggered . | . . Disarmed . | . . Reprogrammed . | . . Reused . | . . Traps Extracted . | . . Installed . | . . Triggered . | . . Machines | -11 -10 ---------- Run | Yrd Mat Machines Disabled . | . . Max in Single Turn . | . . Machines Repaired . | . . Machines Dismantled . | . . Machines Sabotaged . | . . Overloaded Fab Kills . | . . Hacking | -11 -10 --------- Run | Yrd Mat Machines Accessed 1 | . 1 Terminals 1 | . 1 Fabricators . | . . Repair Stations . | . . Recycling Units . | . . Scanalyzers . | . . Garrison Access . | . . Total Hacks 2 | . 2 Successful 1 | . 1 Failed 1 | . 1 Catastrophic 1 | . 1 Database Lockouts . | . . Manual 2 | . 2 Terminals 2 | . 2 Fabricators . | . . Repair Stations . | . . Recycling Units . | . . Scanalyzers . | . . Garrison Access . | . . Terminal Hacks . | . . Fabricator Hacks . | . . Repair Station Hacks . | . . Recycling Unit Hacks . | . . Scanalyzer . | . . Garrison Access Hacks . | . . Unauthorized Hacks 1 | . 1 Terminals 1 | . 1 Botnet 1 | . 1 Fabricators . | . . Repair Stations . | . . Recycling Units . | . . Scanalyzers . | . . Garrison Access . | . . Data Cores Recovered . | . . Used . | . . Hacking Detections 1 | . 1 Full Trace Events . | . . Feedback Events . | . . Feedback Blocked . | . . Robot Schematics Acquired . | . . Robots Built . | . . Authchips . | . . Time . | . . Total Robot Build Rating . | . . Part Schematics Acquired . | . . Parts Built . | . . Authchips . | . . Time . | . . Total Part Build Rating . | . . Parts Repaired . | . . Time . | . . Parts Recycled . | . . Recycled Matter . | . . Retrieved Matter . | . . Retrieved Components . | . . Parts Scanalyzed . | . . Part Schematics Acquired . | . . Parts Damaged . | . . Bothacking | -11 -10 ------------ Run | Yrd Mat Used RIF Installer . | . . Robots Hacked . | . . Non-combat . | . . Combat . | . . Robot Hacks Applied . | . . Relay Couplers Released . | . . Fabnet Peak Effective % . | . . Robots Rewired . | . . Allies Hacked . | . . Hacks Repelled . | . . Allies | -11 -10 -------- Run | Yrd Mat Total Allies . | . . Largest Group . | . . Highest-Rated Group . | . . Highest-Rated Ally . | . . Total Orders . | . . Ally Attacks . | . . Total Damage . | . . Kills . | . . Allies Corrupted . | . . Allies Melted . | . . Intel | -11 -10 ------- Run | Yrd Mat Active Infowar (turns) 237 | 16 221 Seismic 237 | 16 221 Robot Analysis Total . | . . Derelict Logs Recovered . | . . Drone Launches . | . . Drone Recoveries . | . . Exploration | -11 -10 ------------- Run | Yrd Mat Turns Passed 733 | 111 622 Spaces Moved 457 | 66 391 Core 5 | 3 2 Treads . | . . Legs . | . . Wheels 452 | 63 389 Hover . | . . Flight . | . . Fastest Speed 50 | 50 80 Average Speed 96 | 88 98 Slowest Speed 200 | 100 200 Overloaded Moves . | . . Propulsion Burnouts . | . . Robots Hopped . | . . Potential Cave-ins . | . . Cave-ins Triggered . | . . Exploration Rate (%) 32 | 3 62 Regions Visited 1 Branch Regions . Pre-discovered Areas . | . . Known Exits Taken . | . . Unknown Exits Taken 1 | 1 . Scrap Searched . | . . Spaces Dug . | . . Terrain Destroyed . | . . Melee . | . . Projectile . | . . AOE . | . . Terrain Rammed . | . . Walls Destroyed . | . . Machines Disabled . | . . Actions | -11 -10 --------- Run | Yrd Mat Total 636 | 101 535 Wait 59 | 1 58 Move 456 | 65 391 Hop . | . . Pick Up 26 | 16 10 Fast Attach . | . . Attach 16 | 7 9 Detach . | . . Swap . | . . Drop 3 | 1 2 Fire 76 | 11 65 Melee . | . . Ram . | . . Kick . | . . Crush . | . . Escape Stasis . | . . Rewire . | . . Trap . | . . Miscellaneous . | . . Route ------- -11/Scrapyard -10/Materials (discovered 3 exits: [*Mat] / [*Min x2]) History --------- Turn | Location | Event 9 | -11/Scrapyard | Discovered new exit (range 16) 112 | -11/Scrapyard | Entered Materials 351 | -10/Materials | Build established: Mutant 367 | -10/Materials | Discovered new exit (range 6) 432 | -10/Materials | Core integrity fell below 50% 472 | -10/Materials | Discovered new exit (range 16) 497 | -10/Materials | Core integrity fell below 20% 548 | -10/Materials | Lost 3 parts (1p1n1u) 719 | -10/Materials | Discovered new exit (range 10) 734 | -10/Materials | Destroyed by S-10 Pest with Light Assault Rifle Last Messages --------------- 00595_ U-05 Engineer lays Concrete. 00669_ Acquired Hcp. Matter Pod. 00675_ Triggered Alarm Trap. 00675_ An alarm sounds. 00675_ ALERT: Alarm triggered, dispatching investigation squad. 00676_ Triggered Alarm Trap. 00676_ An alarm sounds. 00676_ ALERT: Alarm triggered, dispatching investigation squad. 00681_ ALERT: Hostiles spotted, dispatching reinforcements to Terminal M007. 00682_ Acquired Lgt. Assault Rifle. 00705_ System corrupted: Heat flow error (+193). 00706_ Acquired Lgt. Armor Plating. 00719_ EXIT=FOUND 00728_ S-10 Pest destroyed. 00729_ Acquired 15 matter. 00731_ S-10 Pest destroyed. 00732_ Acquired 15 matter. Map ----- +----------------------------------------------------+ | | | | | | | | | | | | | | | | | | | | | | | | | | | | | | | | | | | | | | | | | ??????????????????????#########?????????????? | | ??????????????????????# #?????????????? | | ????????????########??# """"" #?????????????? | | ????????????# #??# """"" #?????????????? | | #######?????# #??# """"" #?????????????? | | #?????# = #??# @ [ #?????????????? | | ####### #######s####?????????????? | | + + =#????????????????? | | ####+###### # # #????????????????? | | ## ######## #????????????????? | | """ """ ## ??? #????????????????? | | """ """ ## ##?########### #????????????????? | | """ """ ## #????????????# #????????????????? | | """ """ ## #????????????# #????????????????? | | """ """ ## #???????????? ????????????????? | | ## #???????????? ????????????????? | | #? ????????????? < ????????????????? | | #+########? ????????????? ????????????????? | | # #######?? ????????????? ???????????????? | | #?? ????????????? #???????????????? | | #?? ????????????? #???????????????? | | """ #?? ????????????? #???????????????? | | """ #?? ????????????? ????????????????? | | """ #???????????????????????????????????? | | !#???????????????????????????????????? | | #???????????????????????????????????? | | "T" #???????????????????????????????????? | | ##### #???????????????????????????????????? | | ????# #???????????????????????????????????? | | ????# #???????????????????????????????????? | +----------------------------------------------------+ Best States ------------- Heat Dissipation 25 Energy Generation 10 Energy Capacity 250 Matter Stores 300 Matter Capacity 300 Sight Range 16 Terrain Scan Density 10 Evasion (%) 44 Item Schematics ----------------- None Robot Schematics ------------------ None Fabricated ------------ Nothing Repaired ---------- Nothing Alien Tech Used ----------------- None Achievements -------------- None Challenges ------------ None Game ------ Seed BottomlessGlidesysStripper Manual? 0 Play Time 00:09:21 Cumulative 55.8 hours Start 2025.10.11 @ 22:54:21 End 2025.10.11 @ 23:01:30 Sessions 1 Manual Loads 0 Difficulty Rogue Special Mode None Game No. 51 Rogue 51 Adventurer 0 Explorer 0 Win Type - Total 0 Types 0/0/0/0/0/0/0/0/0/0 Lore% 16 Gallery% 33 Achievement% 31 Wizard Run 0 Options --------- Layout 1 ASCII 0 Keyboard 0 Movement Mouse Keybinds 0 Fullscreen 1 Font 24/Smallcaps Map View 50x35 Zoom Use 59% Tactical HUD 1 Map Filters NONE Filters NONE Steam 1 RUN: d978c252-fc3b-4c65-ac98-bbe88145cdcd